fUST/lending_fUST_20241012
["ID","MTS","AMOUNT","RATE_DAILY","PERIOD"]
[340156371,1728700240681,-501.38509926,0.00054794,2]
[340156372,1728700240690,-314.281177,0.00054794,120]
[340156373,1728700240700,-151.0,0.00054794,120]
[340156374,1728700240709,-151.0,0.00054794,120]
[340156375,1728700240718,-500.0,0.00054794,120]
[340156376,1728700240728,-314.281177,0.00054794,120]
[340156377,1728700240738,-152.58027912,0.00054794,2]
[340156378,1728700240748,-500.50786592,0.00054794,2]
[340156379,1728700240757,-509.63252097,0.00054794,120]
[340156380,1728700240767,-500.0,0.00054794,120]
[340156381,1728700240776,-636.45234818,0.00054794,120]
[340156382,1728700240785,-409.10858085,0.00054794,120]
[340156383,1728700240795,-511.47188289,0.00054794,120]
[340156384,1728700240804,-505.46389215,0.00054794,120]
[340156385,1728700240813,-631.87488063,0.00054794,120]
[340156386,1728700240823,-1912.74,0.00054794,2]
[340156387,1728700240832,-536.91793155,0.00054794,120]
[340156388,1728700240842,-500.0,0.00054794,120]
[340156389,1728700240853,-210.0488919,0.00054795,120]
[340156390,1728700240862,-210.0488919,0.00054795,120]
[340156391,1728700240872,-313.9340705,0.00054795,120]
[340156392,1728700240882,-208.5800341,0.00054795,120]
[340156393,1728700240892,-445.561478,0.00054795,120]
[340156394,1728700240901,-209.9542747,0.00054795,120]
[340156395,1728700240911,-150.112233,0.000549,14]
[340156396,1728700240922,-504.23492492,0.00054973,15]
[340156397,1728700240934,-151.0,0.0005498,120]
[340156398,1728700240944,-237.527438,0.0005498,120]
[340156399,1728700240956,-151.0,0.0005498,120]
[340156400,1728700240967,-152.617656,0.0005498,30]
[340156401,1728700240976,-151.0,0.0005498,60]
[340156402,1728700240987,-151.0,0.0005499,120]
[340156403,1728700240999,-207.572445,0.0005499,120]
[340156404,1728700241009,-152.992245,0.0005499,3]
[340156405,1728700241020,-154.389024,0.0005499,120]
[340156406,1728700241031,-192.03691,0.0005499,120]
[340156407,1728700241042,-151.0,0.0005499,120]
[340156408,1728700241054,-172.875823,0.0005499,120]
[340156409,1728700241065,-501.55955102,0.00054999,2]
[340156410,1728700241075,-79264.90828128,0.00055,120]
[340156411,1728700241085,-227.94984025,0.00055,120]
[340156412,1728700241098,-314.281177,0.00055,120]
[340156413,1728700241110,-207.66918,0.00055,120]
[340156414,1728700241120,-151.0,0.00055,120]
[340156415,1728700241130,-314.281177,0.00055,120]
[340156416,1728700241141,-500.0,0.00055068,120]
[340156417,1728700241150,-500.0,0.00055068,120]
[340156418,1728700241160,-151.0,0.00055068,120]
[340156419,1728700241170,-309.83893974,0.00055068,120]
[340156420,1728700241181,-500.0,0.00055068,120]
[340156421,1728700241194,-159.60788048,0.00055068,120]
[340156422,1728700241204,-500.0,0.00055068,120]
[340156423,1728700241215,-151.0,0.00055068,120]
[340156424,1728700241226,-212.45477652,0.00055068,120]
[340156425,1728700241237,-500.0,0.00055068,120]
[340156426,1728700241249,-2000.0,0.00055068,120]
[340156427,1728700241265,-411.5062601,0.00055068,120]
[340156428,1728700241279,-166.37881126,0.00055068,120]
[340156429,1728700241294,-151.0,0.00055068,120]
[340156430,1728700241309,-500.0,0.00055068,120]
[340156431,1728700241322,-1000.0,0.00055068,120]
[340156432,1728700241332,-310.87480834,0.00055068,120]
[340156433,1728700241344,-171.80452907,0.00055068,120]
[340156434,1728700241357,-170.798124,0.00055068,120]
[340156435,1728700241370,-151.0,0.00055068,60]
[340156436,1728700241383,-2495.38,0.00055068,120]
[340156437,1728700241397,-1277.1,0.00055068,120]
[340156438,1728700241411,-174.14792394,0.00055068,30]
[340156439,1728700241423,-151.829895,0.00055068,30]
[340156440,1728700241437,-500.0,0.00055068,120]
[340156441,1728700241450,-151.829895,0.00055068,30]
[340156442,1728700241465,-31199.33,0.00055068,18]
[340156443,1728700241478,-514.26073765,0.00055068,30]
[340156444,1728700241491,-303.19165213,0.00055068,120]
[340156445,1728700241504,-500.0,0.00055068,120]
[340156446,1728700241516,-500.0,0.00055068,120]
[340156447,1728700241528,-1912.74,0.00055068,2]
[340156448,1728700241541,-194.03640379,0.00055068,120]
[340156449,1728700241554,-6811.8789566,0.00055095,2]
[340156450,1728700241567,-150.112233,0.000551,13]
[340156451,1728700241579,-151.11219021,0.00055169,2]
[340156452,1728700241591,-150.112233,0.000553,10]
[340156453,1728700241602,-500.0,0.00055342,120]
[340156454,1728700241614,-500.0,0.00055342,120]
[340156455,1728700241623,-500.0,0.00055342,120]
[340156456,1728700241633,-546.06488355,0.00055342,120]
[340156457,1728700241645,-557.96033222,0.00055342,120]
[340156458,1728700241655,-2000.0,0.00055342,120]
[340156459,1728700241667,-154.58376402,0.00055342,120]
[340156460,1728700241678,-1000.0,0.00055342,120]
[340156461,1728700241689,-2495.38,0.00055342,120]
[340156462,1728700241701,-1277.1,0.00055342,120]
[340156463,1728700241712,-500.0,0.00055342,120]
[340156464,1728700241723,-31199.33,0.00055342,18]
[340156465,1728700241736,-500.0,0.00055342,120]
[340156466,1728700241748,-500.0,0.00055342,120]
[340156467,1728700241760,-1912.74,0.00055342,2]
[340156468,1728700241772,-6811.8789566,0.00055353,2]
[340156469,1728700241783,-81444.45516372,0.0005544,2]
[340156470,1728700241792,-151.829895,0.0005544,30]
[340156471,1728700241802,-151.829895,0.0005544,30]
[340156472,1728700241813,-314.281177,0.0005544,120]
[340156473,1728700241824,-151.0,0.0005544,120]
[340156474,1728700241837,-314.281177,0.0005544,120]
[340156475,1728700241852,-150.112233,0.000555,16]
[340156476,1728700241869,-162.625777,0.0005552,2]
[340156477,1728700241880,-500.0,0.00055616,120]
[340156478,1728700241894,-500.0,0.00055616,120]
[340156479,1728700241905,-151.0,0.00055616,120]
[340156480,1728700241918,-501.54700055,0.00055616,120]
[340156481,1728700241931,-169.105334,0.00055616,120]
[340156482,1728700241943,-2000.0,0.00055616,120]
[340156483,1728700241956,-151.0,0.00055616,120]
[340156484,1728700241970,-1000.0,0.00055616,120]
[340156485,1728700241984,-206.321065,0.00055616,60]
[340156486,1728700241995,-2495.38,0.00055616,120]
[340156487,1728700242007,-1277.1,0.00055616,120]
[340156488,1728700242019,-500.0,0.00055616,120]
[340156489,1728700242031,-31199.33,0.00055616,18]
[340156490,1728700242044,-500.0,0.00055616,120]
[340156491,1728700242055,-500.0,0.00055616,120]
[340156492,1728700242067,-1912.74,0.00055616,2]
[340156493,1728700242080,-1357.47972584,0.0005568,110]
[340156494,1728700242094,-150.112233,0.000557,11]
[340156495,1728700242107,-6811.8789566,0.00055888,2]
[340156496,1728700242118,-506.1952522,0.0005589,120]
[340156497,1728700242129,-494.94732921,0.0005589,120]
[340156498,1728700242142,-2000.0,0.0005589,120]
[340156499,1728700242153,-1000.0,0.0005589,120]
[340156500,1728700242165,-2495.38,0.0005589,120]
[340156501,1728700242176,-1277.1,0.0005589,120]
[340156502,1728700242190,-500.0,0.0005589,120]
[340156503,1728700242202,-31199.33,0.0005589,18]
[340156504,1728700242215,-536.13004175,0.0005589,120]
[340156505,1728700242227,-500.0,0.0005589,120]
[340156506,1728700242240,-1912.74,0.0005589,2]
[340156507,1728700242253,-151.829895,0.00055906,30]
[340156508,1728700242264,-151.829895,0.00055906,30]
[340156509,1728700242277,-51284.91259086,0.00056,63]
[340156510,1728700242290,-50000.0,0.00056,120]
[340156511,1728700242300,-151.0,0.00056,120]
[340156512,1728700242313,-150.0,0.00056,120]
[340156513,1728700242325,-201.0,0.00056,120]
[340156514,1728700242337,-183.0,0.00056,120]
[340156515,1728700242348,-314.281177,0.00056,120]
[340156516,1728700242359,-160.576429,0.00056,120]
[340156517,1728700242369,-314.281177,0.00056,120]
[340156518,1728700242467,-6811.8789572,0.0005613,2]
[340156519,1728700242480,-151.829895,0.00056163,30]
[340156520,1728700242489,-151.829895,0.00056163,30]
[340156521,1728700242499,-153.604526,0.00056164,120]
[340156522,1728700242508,-151.0,0.00056164,120]
[340156523,1728700242518,-2000.0,0.00056164,120]
[340156524,1728700242527,-151.0,0.00056164,120]
[340156525,1728700242537,-2500.0,0.00056164,120]
[340156526,1728700242546,-1000.0,0.00056164,120]
[340156527,1728700242555,-2495.38,0.00056164,120]
[340156528,1728700242565,-1277.1,0.00056164,120]
[340156529,1728700242575,-500.0,0.00056164,120]
[340156530,1728700242587,-31199.33,0.00056164,18]
[340156531,1728700242596,-504.30665876,0.00056164,120]
[340156532,1728700242606,-1912.74,0.00056164,2]
[340156533,1728700242615,-592.03536522,0.00056345,2]
[340156534,1728700242624,-229.683291,0.00056438,120]
[340156535,1728700242633,-151.0,0.00056438,120]
[340156536,1728700242643,-2000.0,0.00056438,120]
[340156537,1728700242653,-151.0,0.00056438,120]
[340156538,1728700242662,-1000.0,0.00056438,120]
[340156539,1728700242671,-2495.38,0.00056438,120]
[340156541,1728700242680,-1277.1,0.00056438,120]
[340156542,1728700242690,-500.0,0.00056438,120]
[340156543,1728700242699,-31199.33,0.00056438,18]
[340156544,1728700242710,-314.281177,0.00056438,120]
[340156545,1728700242719,-314.281177,0.00056438,120]
[340156546,1728700242729,-1912.74,0.00056438,2]
[340156547,1728700242754,-156.0,0.00056484,120]
[340156548,1728700242763,-158.15,0.000565,57]
[340156549,1728700242775,-158.15,0.000565,57]
[340156550,1728700242784,-300.0,0.000567,31]
[340156551,1728700242796,-151.449402,0.000567,120]
[340156552,1728700242807,-150.393678,0.000567,2]
[340156553,1728700242817,-978.29743259,0.00056712,120]
[340156554,1728700242827,-1000.0,0.00056712,120]
[340156555,1728700242838,-2495.38,0.00056712,120]
[340156556,1728700242847,-1277.1,0.00056712,120]
[340156557,1728700242858,-151.829895,0.00056712,30]
[340156558,1728700242868,-151.829895,0.00056712,30]
[340156559,1728700242878,-500.0,0.00056712,120]
[340156560,1728700242889,-31199.33,0.00056712,18]
[340156561,1728700242898,-1912.74,0.00056712,2]
[340156562,1728700242908,-151.0,0.00056869,15]
[340156563,1728700242917,-12904.26137404,0.00056959,2]
[340156564,1728700242932,-332.0,0.00056959,2]
[340156565,1728700242944,-1009.50087834,0.00056959,2]
[340156568,1728700242999,-500.0,0.00054794,120]
[340156570,1728700243009,-500.0,0.00054794,120]
[340156572,1728700243021,-190.54193204,0.00055068,120]
[340156574,1728700243034,-505.22459969,0.00055068,120]
[340156575,1728700243046,-91605.02304277,0.00056959,2]
[340156576,1728700243056,-151.0,0.00056959,120]
[340156577,1728700243066,-151.0,0.00056959,120]
[340156578,1728700243079,-314.281177,0.00056959,120]
[340156579,1728700243089,-314.28118,0.00056959,120]
[340156580,1728700243100,-40628.83491257,0.00056986,84]
[340156581,1728700243110,-151.0,0.00056986,120]
[340156582,1728700243121,-1000.0,0.00056986,120]
[340156583,1728700243133,-2495.38,0.00056986,120]
[340156584,1728700243143,-1277.1,0.00056986,120]
[340156585,1728700243153,-151.829895,0.00056986,30]
[340156586,1728700243164,-151.829895,0.00056986,30]
[340156587,1728700243175,-500.0,0.00056986,120]
[340156588,1728700243187,-31199.33,0.00056986,18]
[340156589,1728700243199,-1912.74,0.00056986,2]
[340156590,1728700243208,-50000.0,0.00057,120]
[340156591,1728700243218,-1992.96,0.00057,30]
[340156592,1728700243228,-150.112235,0.000572,10]
[340156593,1728700243237,-150.112233,0.000572,13]
[340156594,1728700243247,-207.048877,0.0005725,120]
[340156595,1728700243257,-256.592136,0.0005726,120]
[340156596,1728700243267,-151.0,0.0005726,120]
[340156597,1728700243280,-1000.0,0.0005726,120]
[340156598,1728700243291,-2495.38,0.0005726,120]
[340156599,1728700243302,-1277.1,0.0005726,120]
[340156600,1728700243314,-151.829895,0.0005726,30]
[340156601,1728700243325,-151.829895,0.0005726,30]
[340156602,1728700243334,-500.0,0.0005726,120]
[340156603,1728700243346,-31199.33,0.0005726,18]
[340156604,1728700243357,-1912.74,0.0005726,2]
[340156605,1728700243368,-1000.0,0.0005747,30]
[340156606,1728700243379,-1000.0,0.00057478,30]
[340156607,1728700243388,-150.112233,0.000575,10]
[340156608,1728700243398,-6531.2561638,0.0005751,27]
[340156609,1728700243407,-500.0,0.00057534,120]
[340156610,1728700243416,-500.0,0.00057534,120]
[340156611,1728700243426,-500.0,0.00057534,120]
[340156612,1728700243435,-500.0,0.00057534,120]
[340156613,1728700243445,-500.0,0.00057534,120]
[340156614,1728700243455,-500.0,0.00057534,120]
[340156615,1728700243464,-500.0,0.00057534,120]
[340156616,1728700243474,-500.0,0.00057534,120]
[340156617,1728700243485,-500.0,0.00057534,120]
[340156618,1728700243494,-500.0,0.00057534,120]
[340156619,1728700243504,-500.0,0.00057534,120]
[340156620,1728700243514,-1493.42216874,0.00057534,120]
[340156621,1728700243524,-1000.0,0.00057534,120]
[340156622,1728700243534,-586.06,0.00057534,120]
[340156623,1728700243544,-586.06,0.00057534,120]
[340156624,1728700243553,-586.06,0.00057534,120]
[340156625,1728700243563,-586.06,0.00057534,120]
[340156626,1728700243572,-586.06,0.00057534,120]
[340156627,1728700243583,-586.06,0.00057534,120]
[340156628,1728700243592,-586.06,0.00057534,120]
[340156629,1728700243602,-586.06,0.00057534,120]
[340156630,1728700243613,-586.06,0.00057534,120]
[340156631,1728700243623,-586.06,0.00057534,120]
[340156632,1728700243633,-586.06,0.00057534,120]
[340156633,1728700243643,-2495.38,0.00057534,120]
[340156634,1728700243653,-1277.1,0.00057534,120]
[340156635,1728700243663,-500.0,0.00057534,120]
[340156636,1728700243674,-31199.33,0.00057534,18]
[340156637,1728700243685,-1912.74,0.00057534,2]
[340156638,1728700243697,-150.112233,0.000578,13]
[340156639,1728700243710,-500.0,0.00057808,120]
[340156640,1728700243721,-1000.0,0.00057808,120]
[340156641,1728700243732,-586.06,0.00057808,120]
[340156642,1728700243744,-2495.38,0.00057808,120]
[340156643,1728700243753,-1277.1,0.00057808,120]
[340156644,1728700243763,-500.0,0.00057808,120]
[340156645,1728700243773,-31199.33,0.00057808,18]
[340156646,1728700243783,-1912.74,0.00057808,2]
[340156647,1728700243794,-1000.0,0.00057832,30]
[340156648,1728700243803,-161.60378812,0.00057899,90]
[340156649,1728700243813,-464215.35016405,0.000579,32]
[340156650,1728700244428,-174.79472982,0.0005374,28]
[340156651,1728700246900,156.0,0.00047,90]
[340156652,1728700266197,197.3695169,0.00049619,2]
[340156653,1728700269980,4473.97798919,0.00048888,2]
[340156654,1728700284239,966.3174155,0.00047638,2]
[340156656,1728700343800,483.21437333,0.00045,120]
[340156659,1728700469687,506.12506725,0.0003526,2]
[340156660,1728700609842,1021.0,0.00036,2]
[340156661,1728700714676,383.00977477,0.00035748,2]
[340156662,1728700798206,171.492427,0.00035398,2]
[340156665,1728701139969,250.0,0.00034606,2]
[340156666,1728701153113,-166.666666,0.00038406,2]
[340156667,1728701153136,-26205.90541557,0.00039586,118]
[340156668,1728701153158,-3435.4320276,0.00039652,2]
[340156669,1728701153180,-191.0039878,0.00039686,2]
[340156670,1728701153202,-223.475089,0.00039929,2]
[340156671,1728701153225,-550.0,0.00040143,5]
[340156672,1728701153248,-8279.88599163,0.00040143,2]
[340156673,1728701153270,-2649.2971193,0.00040144,28]
[340156674,1728701153292,-550.0,0.00040209,30]
[340156675,1728701153315,-168.52782213,0.00040213,30]
[340156676,1728701153337,-287.0,0.00040213,2]
[340156677,1728701153359,-3275.45827971,0.00040213,2]
[340156682,1728701226136,-3000.0,0.00037308,2]
[340156683,1728701226161,-158.15082827,0.00039552,2]
[340156684,1728701226185,-623.05510469,0.00040012,6]
[340156685,1728701226210,-83.25169928,0.0004021,5]
[340156686,1728701238118,-466.74830072,0.0004021,5]
[340156687,1728701238142,-150.67587974,0.00040211,30]
[340156688,1728701238172,-399.32412026,0.00040211,30]
[340156689,1728701238196,-4086.55244081,0.00040213,2]
[340156690,1728701241111,-17537.98927948,0.00040213,2]
[340156691,1728701241134,-197.369512,0.00040244,2]
[340156692,1728701241162,-250.0,0.00040383,2]
[340156693,1728701241188,-250.0,0.00040494,2]
[340156694,1728701241214,-250.0,0.00040605,2]
[340156695,1728701241239,-250.0,0.00040715,2]
[340156696,1728701241263,-30.69587071,0.00040826,2]
[340156697,1728701251096,-190.0947247,0.00040826,2]
[340156698,1728701254118,-29.20940459,0.00040826,2]
[340156699,1728701254141,-250.0,0.00040937,2]
[340156700,1728701254165,-594.47050599,0.00041,2]
[340156701,1728701254186,-500.0,0.00041,2]
[340156702,1728701254210,-250.0,0.00041048,2]
[340156703,1728701254232,-250.0,0.00041159,2]
[340156704,1728701254257,-250.0,0.00041269,2]
[340156705,1728701254282,-250.0,0.0004138,2]
[340156706,1728701254306,-250.0,0.00041491,2]
[340156707,1728701254330,-250.0,0.00041602,2]
[340156708,1728701254354,-197.369512,0.00041614,2]
[340156709,1728701254377,-250.0,0.00041712,2]
[340156710,1728701254399,-250.0,0.00041823,2]
[340156711,1728701254425,-250.0,0.00041934,2]
[340156712,1728701254449,-250.0,0.00042045,2]
[340156713,1728701254475,-250.0,0.00042155,2]
[340156714,1728701254500,-250.0,0.00042266,2]
[340156715,1728701254525,-250.0,0.00042377,2]
[340156716,1728701254548,-250.0,0.00042488,2]
[340156717,1728701254573,-770.0,0.00042881,5]
[340156718,1728701254594,-668.79798908,0.00044232,30]
[340156726,1728701333324,170.637987,0.00034817,2]
[340156727,1728701347103,-550.0,0.00040943,30]
[340156728,1728701347129,-348.62634161,0.00040943,5]
[340156729,1728701353085,-201.37365839,0.00040943,5]
[340156730,1728701353107,-205.57708422,0.00040944,2]
[340156731,1728701353196,-24694.42291578,0.00040944,2]
[340156732,1728701353219,-770.0,0.0004363,5]
[340156733,1728701353242,-400.0,0.00044658,2]
[340156734,1728701353263,-528.0,0.00045037,30]
[340156735,1728701353286,-504.09472035,0.00045429,10]
[340156736,1728701353311,-500.0,0.00045429,7]
[340156737,1728701353337,-192.0,0.0004573,2]
[340156738,1728701353360,-501.3774042,0.00045835,10]
[340156739,1728701353382,-503.2254506,0.00045835,10]
[340156740,1728701353408,-168.37167416,0.00045906,2]
[340156741,1728701353433,-193.045,0.00046008,75]
[340156742,1728701353456,-338.81807311,0.00046133,10]
[340156743,1728701353480,-416.41952388,0.00046175,10]
[340156744,1728701356131,-85.13430483,0.00046175,10]
[340156745,1728701356153,-712.0,0.00046493,5]
[340156746,1728701356175,-26205.90541553,0.00046665,120]
[340156747,1728701356196,-1000.0,0.00046799,7]
[340156748,1728701356218,-1040.59464185,0.0004691,2]
[340156749,1728701356240,-160.952441,0.00046966,2]
[340156750,1728701356262,-160.952441,0.00046979,2]
[340156751,1728701356284,-160.952441,0.00046992,2]
[340156752,1728701356309,-160.952441,0.00047005,2]
[340156753,1728701356334,-160.952441,0.00047018,2]
[340156754,1728701356358,-160.952441,0.00047031,2]
[340156755,1728701356382,-160.952441,0.00047044,2]
[340156756,1728701356404,-160.952441,0.00047057,2]
[340156757,1728701356429,-160.952441,0.0004707,2]
[340156758,1728701356455,-160.952441,0.00047083,2]
[340156759,1728701356477,-160.952441,0.00047096,2]
[340156760,1728701356500,-160.952441,0.00047109,2]
[340156761,1728701356528,-160.952441,0.00047122,2]
[340156762,1728701356554,-160.952441,0.00047135,2]
[340156763,1728701356578,-160.952441,0.00047148,2]
[340156764,1728701356602,-160.952441,0.00047161,2]
[340156765,1728701356627,-160.952441,0.00047174,2]
[340156766,1728701356651,-160.952441,0.00047187,2]
[340156767,1728701356675,-160.952441,0.000472,2]
[340156768,1728701356700,-168.37167412,0.00048098,2]
[340156769,1728701356729,-155.32,0.000484,45]
[340156770,1728701356756,-155.32,0.000484,45]
[340156771,1728701356781,-155.32,0.000484,45]
[340156772,1728701356803,-192.0,0.0004873,2]
[340156773,1728701356827,-1280.49555478,0.00048802,7]
[340156774,1728701356849,-400.0,0.00049517,2]
[340156775,1728701356869,-168.37167412,0.0005029,2]
[340156776,1728701356890,-192.0,0.0005173,2]
[340156777,1728701356911,-1000.0,0.00052,120]
[340156778,1728701357046,-155.32,0.000524,51]
[340156779,1728701357076,-155.32,0.000524,51]
[340156780,1728701357104,-155.32,0.000524,51]
[340156781,1728701357133,-155.32,0.000524,51]
[340156782,1728701357157,-155.32,0.000524,51]
[340156783,1728701357181,-155.32,0.000524,51]
[340156784,1728701357201,-168.37167412,0.00052482,2]
[340156785,1728701357222,-349.83537745,0.00052899,120]
[340156786,1728701357247,-500.0,0.00052899,120]
[340156787,1728701357272,-500.0,0.00052899,120]
[340156788,1728701357296,-500.0,0.00052899,120]
[340156789,1728701357319,-500.0,0.00052899,120]
[340156790,1728701357339,-500.0,0.00052899,120]
[340156791,1728701357358,-500.0,0.00052899,31]
[340156792,1728701357381,-500.0,0.00052899,120]
[340156793,1728701357402,-500.0,0.00052899,120]
[340156794,1728701357424,-500.0,0.00052899,120]
[340156795,1728701357446,-500.0,0.00052899,120]
[340156796,1728701357468,-500.0,0.00052899,120]
[340156797,1728701357488,-500.0,0.00052899,120]
[340156798,1728701357511,-500.0,0.00052899,120]
[340156799,1728701357532,-368.95254272,0.00052899,120]
[340156800,1728701357553,-500.0,0.00052899,120]
[340156801,1728701357574,-500.0,0.00052899,120]
[340156802,1728701357596,-250.0,0.00052899,120]
[340156803,1728701357617,-501.51616382,0.00052899,31]
[340156804,1728701357639,-500.0,0.00052899,120]
[340156805,1728701357662,-500.0,0.00052899,120]
[340156806,1728701357686,-500.0,0.00052899,120]
[340156807,1728701357722,-416.44305178,0.00052899,120]
[340156808,1728701357749,-500.0,0.00052899,120]
[340156809,1728701357774,-500.0,0.00052899,120]
[340156810,1728701357801,-500.0,0.00052899,120]
[340156811,1728701357830,-500.0,0.00052899,120]
[340156812,1728701357855,-500.0,0.00052899,120]
[340156813,1728701357879,-500.0,0.00052899,120]
[340156814,1728701357907,-500.0,0.00052899,120]
[340156815,1728701357933,-500.0,0.00052899,120]
[340156816,1728701357958,-500.0,0.00052899,120]
[340156817,1728701357982,-500.0,0.00052899,120]
[340156818,1728701358003,-500.0,0.00052899,120]
[340156819,1728701358029,-500.0,0.00052899,120]
[340156820,1728701358052,-500.0,0.00052899,120]
[340156821,1728701358075,-500.0,0.00052899,120]
[340156822,1728701358097,-500.0,0.00052899,120]
[340156823,1728701358119,-228.77690338,0.00052899,120]
[340156824,1728701358141,-500.0,0.00052899,120]
[340156825,1728701358163,-500.0,0.00052899,120]
[340156826,1728701358185,-500.0,0.00052899,120]
[340156827,1728701358207,-500.0,0.00052899,120]
[340156828,1728701358231,-255.69752882,0.00052899,120]
[340156829,1728701358253,-500.0,0.00052899,120]
[340156830,1728701358275,-500.0,0.00052899,120]
[340156831,1728701358296,-500.0,0.000529,5]
[340156832,1728701358318,-502.52874428,0.00052971,10]
[340156833,1728701358339,-502.54167999,0.00052971,10]
[340156837,1728701424761,170.771155,0.00045423,2]
[340156838,1728701424940,170.771155,0.00045897,2]
[340156839,1728701425147,170.771155,0.0004637,2]
[340156840,1728701425391,170.771155,0.00046843,2]
[340156841,1728701425605,170.771155,0.00047317,2]
[340156842,1728701426008,170.771155,0.0004779,2]
[340156897,1728701432573,-3000.0,0.00040928,113]
[340156899,1728701432583,-352.07,0.00053429,30]
[340156901,1728701432592,-608.37,0.00053436,30]
[340156903,1728701432602,-506.98,0.00053439,30]
[340156905,1728701432612,-422.48,0.00053439,30]
[340156907,1728701432624,-193.60700828,0.00053446,2]
[340156908,1728701432633,-153.0,0.00053449,120]
[340156909,1728701432645,-153.0,0.00053449,120]
[340156910,1728701432655,-153.0,0.00053449,120]
[340156911,1728701432665,-153.0,0.00053449,120]
[340156912,1728701432676,-153.0,0.00053449,120]
[340156913,1728701432687,-153.0,0.00053449,120]
[340156914,1728701432696,-153.0,0.00053449,120]
[340156915,1728701432707,-153.0,0.00053449,120]
[340156916,1728701432718,-153.0,0.00053449,120]
[340156917,1728701432728,-153.0,0.00053449,120]
[340156918,1728701432738,-153.0,0.00053449,120]
[340156919,1728701432749,-153.0,0.00053449,120]
[340156920,1728701432760,-153.0,0.00053449,120]
[340156921,1728701432771,-153.0,0.00053449,120]
[340156922,1728701432781,-153.0,0.00053449,120]
[340156923,1728701432790,-153.0,0.00053449,120]
[340156924,1728701432800,-153.0,0.00053449,120]
[340156925,1728701432810,-2318.13497944,0.00053633,28]
[340156926,1728701432821,-168.37167412,0.00053643,2]
[340156927,1728701432832,-498.48,0.00053723,30]
[340156928,1728701432843,-152.10583808,0.00053732,120]
[340156929,1728701432854,-500.0,0.00053732,120]
[340156930,1728701432865,-250.0,0.00053732,120]
[340156931,1728701432876,-358.75298926,0.00053732,120]
[340156932,1728701432886,-500.0,0.00053732,120]
[340156933,1728701432896,-472.85528098,0.00053732,120]
[340156934,1728701432908,-293.39,0.00053733,30]
[340156935,1728701432919,-244.49,0.00053733,30]
[340156936,1728701432929,-203.74,0.00053733,30]
[340156937,1728701432941,-169.79,0.00053733,30]
[340156938,1728701432951,-848.96,0.00053733,30]
[340156939,1728701432961,-23556.7625711,0.00053733,8]
[340156940,1728701432976,-50663.5312151,0.00053733,8]
[340156941,1728701432986,-168.52782214,0.00053733,120]
[340156942,1728701432999,-426.8184923,0.00053973,30]
[340156943,1728701433009,-307.1811376,0.00054247,30]
[340156944,1728701433018,-947.22,0.00054343,10]
[340156945,1728701433028,-789.35,0.00054343,10]
[340156946,1728701433038,-332.29842457,0.00054353,120]
[340156947,1728701433047,-375.20615021,0.00054353,120]
[340156948,1728701433057,-271.81061436,0.00054353,120]
[340156949,1728701433067,-5186.64549404,0.00054354,8]
[340156950,1728701433471,-1275.73349943,0.00054354,8]
[340156985,1728701438620,-1751.10385744,0.00054354,8]
[340156988,1728701439452,-38900.04229129,0.00054354,8]
[340156989,1728701439462,-101327.06243,0.00054354,8]
[340156990,1728701439472,-88888.0,0.00054364,120]